bitfinex-derivatives/quotes_BTCF0:USTF0_20240917
["timestamp","ask_amount","ask_price","bid_price","bid_amount"]
[1726583473085,0.54176334,60171.0,60157.0,0.01470453]
[1726583473287,0.13192475,60160.0,60158.0,0.083101]
[1726583473685,0.13192475,60160.0,60157.0,0.00249308]
[1726583473686,0.3608,60165.0,60163.0,0.083094]
[1726583473989,0.3608,60174.0,60172.0,0.083081]
[1726583474179,0.18096334,60173.0,60172.0,0.083081]
[1726583474381,0.3608,60174.0,60172.0,0.083081]
[1726583475585,0.05962171,60181.0,60170.0,0.53116]
[1726583475791,0.05962171,60181.0,60178.0,0.083073]
[1726583475792,0.45706508,60180.0,60178.0,0.083073]
[1726583475980,0.36172,60182.0,60181.0,0.08307]
[1726583476184,0.3608,60182.0,60181.0,0.08307]
[1726583476987,0.05101719,60182.0,60181.0,0.08307]
[1726583477187,0.05101719,60182.0,60177.0,0.5312]
[1726583477384,0.05101719,60181.0,60178.0,0.083074]
[1726583477586,0.3608,60179.0,60178.0,0.083074]
[1726583477783,0.41181719,60179.0,60178.0,0.083074]
[1726583478291,0.41181719,60179.0,60177.0,0.53128]
[1726583478292,0.41181719,60179.0,60177.0,0.54351078]
[1726583478492,0.41181719,60179.0,60177.0,0.54223078]
[1726583478493,0.11063045,60178.0,60177.0,0.54223078]
[1726583478694,0.47143045,60178.0,60177.0,0.54223078]
[1726583478987,0.11063045,60178.0,60177.0,0.54223078]
[1726583479304,0.05101719,60178.0,60177.0,0.54223078]
[1726583479493,0.05101596,60178.0,60177.0,0.54223078]
[1726583479694,0.05101596,60178.0,60177.0,0.62530578]
[1726583479893,0.09171687,60178.0,60177.0,0.62530578]
[1726583481590,0.09171162,60178.0,60177.0,0.54223078]
[1726583481899,0.04069941,60178.0,60177.0,1.88520376]
[1726583482199,5.5e-07,60178.0,60177.0,2.08462578]
[1726583482383,0.21431078,60188.0,60177.0,2.00155078]
[1726583482583,0.05961326,60193.0,60184.0,0.53]
[1726583482789,0.27610174,60191.0,60184.0,0.53]
[1726583482998,0.27610174,60191.0,60180.0,0.0024918]
[1726583482999,0.05961326,60192.0,60191.0,0.53]
[1726583483293,0.05960045,60193.0,60192.0,0.083055]
[1726583483595,0.21431078,60199.0,60198.0,0.083046]
[1726583483787,0.3608,60208.0,60207.0,0.083034]
[1726583484401,0.18131291,60209.0,60208.0,0.083032]
[1726583484584,0.16482618,60210.0,60209.0,0.083031]
[1726583484787,0.14818632,60211.0,60210.0,0.08303]
[1726583484994,0.16482618,60213.0,60211.0,0.083028]
[1726583485191,0.24089047,60215.0,60208.0,0.00116]
[1726583485398,0.16466531,60209.0,60208.0,0.53]
[1726583485588,0.16466531,60212.0,60210.0,0.61303]
[1726583485784,0.3608,60211.0,60207.0,0.01451051]
[1726583485987,0.16466531,60209.0,60208.0,0.083032]
[1726583486199,0.27610174,60208.0,60207.0,0.01451051]
[1726583486393,0.77952332,60208.0,60207.0,0.01451051]
[1726583486694,1.37494666,60208.0,60200.0,0.083043]
[1726583486898,1.37494666,60208.0,60195.0,0.3608]
[1726583486899,0.27610174,60196.0,60195.0,0.01219638]
[1726583487109,0.23194387,60196.0,60195.0,0.08305]
[1726583487392,0.47139018,60196.0,60194.0,0.01473696]
[1726583487600,0.56762137,60195.0,60194.0,0.00249093]
[1726583487783,0.38669192,60195.0,60194.0,0.00249093]
[1726583488192,0.47139018,60195.0,60194.0,0.08504452]
[1726583488497,0.23188725,60195.0,60194.0,0.08504452]
[1726583488690,0.18088604,60195.0,60194.0,0.08504452]
[1726583489197,0.05100121,60195.0,60194.0,0.08504452]
[1726583489495,0.05100219,60195.0,60189.0,0.54233079]
[1726583489799,0.21537547,60194.0,60189.0,0.54233079]
[1726583490103,0.3608,60197.0,60196.0,0.083049]
[1726583490288,0.0916922,60197.0,60196.0,0.083049]
[1726583490489,0.4524922,60197.0,60196.0,0.083049]
[1726583490692,0.0916922,60197.0,60196.0,0.083049]
[1726583491197,0.4524922,60197.0,60193.0,0.53116]
[1726583491403,0.0916922,60196.0,60193.0,0.083053]
[1726583491701,0.53216722,60196.0,60195.0,0.08305]
[1726583492002,0.36779394,60196.0,60195.0,0.08305]
[1726583492402,0.92453387,60196.0,60195.0,0.08305]
[1726583492995,1.28533387,60196.0,60194.0,0.014]
[1726583493305,1.27133387,60195.0,60193.0,0.083053]
[1726583493500,0.41339083,60194.0,60193.0,0.083053]
[1726583494605,0.59425577,60194.0,60193.0,0.613053]
[1726583494907,0.0916922,60194.0,60193.0,0.613053]
[1726583495099,0.09169089,60194.0,60193.0,0.53]
[1726583495400,0.94963393,60194.0,60180.0,0.08307]
[1726583495700,0.94963393,60194.0,60176.0,0.083075]
[1726583495701,0.26210174,60181.0,60176.0,0.083075]
[1726583495901,0.26210174,60181.0,60172.0,0.00249224]
[1726583495902,0.083078,60176.0,60172.0,0.00249224]
[1726583496107,0.34518274,60173.0,60164.0,0.3608]
[1726583496301,0.3608,60165.0,60164.0,0.083093]
[1726583496494,0.51208568,60165.0,60160.0,0.00249246]
[1726583496698,0.15128568,60164.0,60163.0,0.083095]
[1726583496996,0.09169089,60164.0,60163.0,0.083095]
[1726583499808,0.09269089,60164.0,60163.0,0.083095]
[1726583501408,0.09269089,60164.0,60159.0,0.73681256]
[1726583501610,0.21431078,60161.0,60160.0,0.083099]
[1726583501804,0.30600167,60161.0,60160.0,0.083099]
[1726583502405,0.09169089,60161.0,60160.0,0.083099]
[1726583502704,0.09169089,60161.0,60160.0,0.443899]
[1726583502904,0.35479263,60161.0,60159.0,0.00976541]
[1726583503111,0.35379263,60160.0,60156.0,0.00249256]
[1726583503304,0.05959479,60160.0,60159.0,0.0831]
[1726583503604,0.64848305,60160.0,60159.0,0.0831]
[1726583503805,0.91058479,60160.0,60156.0,0.00249256]
[1726583504005,0.49714304,60160.0,60159.0,0.0831]
[1726583504210,0.64852405,60160.0,60159.0,0.0831]
[1726583504415,0.91062579,60160.0,60159.0,0.0831]
[1726583504999,0.06518094,60160.0,60159.0,0.6131]
[1726583505215,0.19277919,60161.0,60160.0,0.083099]
[1726583505605,0.3608,60173.0,60160.0,0.083099]
[1726583505915,0.26210174,60164.0,60159.0,0.3608]
[1726583506110,0.49714304,60169.0,60168.0,0.613088]
[1726583506610,0.75924478,60169.0,60168.0,0.613088]
[1726583506811,0.3608,60173.0,60172.0,0.083082]
[1726583507016,0.4669,60185.0,60172.0,0.8908]
[1726583507017,0.3608,60182.0,60172.0,0.8908]
[1726583507204,0.3608,60182.0,60181.0,0.61307]
[1726583507409,1.12004478,60182.0,60181.0,0.61307]
[1726583508017,1.12004478,60182.0,60175.0,0.53]
[1726583508315,0.26210174,60178.0,60177.0,0.083075]
[1726583508521,0.26210174,60178.0,60175.0,0.00116]
[1726583508702,0.05961326,60181.0,60176.0,0.083075]
[1726583508703,0.26210174,60177.0,60176.0,0.083075]
[1726583509314,0.75924478,60177.0,60176.0,0.083075]
[1726583509510,0.81885804,60177.0,60176.0,0.083075]
[1726583509720,0.90193404,60177.0,60172.0,0.00990489]
[1726583510009,0.90193404,60177.0,60171.0,0.3608]
[1726583510010,0.11063164,60176.0,60175.0,0.53]
[1726583510220,0.05101838,60176.0,60175.0,0.613078]
[1726583510524,0.05961326,60181.0,60180.0,0.083071]
[1726583510703,0.3608,60182.0,60181.0,0.08307]
[1726583511105,0.61214922,60203.0,60180.0,0.53116]
[1726583511106,0.083063,60186.0,60182.0,0.083068]
[1726583511315,0.26210174,60183.0,60182.0,0.083068]
[1726583511814,0.08307,60181.0,60180.0,0.00116]
[1726583512118,0.083072,60179.0,60178.0,0.00249216]
[1726583512419,0.34517374,60179.0,60178.0,0.01216447]
[1726583512718,0.75924478,60179.0,60168.0,0.00249268]
[1726583513014,0.26210174,60171.0,60168.0,0.00249268]
[1726583513222,0.26210174,60171.0,60170.0,0.613085]
[1726583513617,0.18149515,60172.0,60170.0,0.613085]
[1726583513618,0.36630809,60172.0,60171.0,0.083084]
[1726583513812,0.05960999,60180.0,60179.0,0.083072]
[1726583514113,0.71194398,60180.0,60175.0,0.083077]
[1726583514313,0.71194398,60180.0,60172.0,0.53]
[1726583514314,0.21480094,60174.0,60172.0,0.53124]
[1726583514505,0.29788194,60173.0,60171.0,0.083083]
[1726583514711,0.21480094,60171.0,60170.0,0.004]
[1726583514912,0.05960999,60178.0,60170.0,0.087084]
[1726583515218,0.21480094,60171.0,60170.0,0.083085]
[1726583515614,0.26582254,60171.0,60170.0,0.083085]
[1726583517020,0.05960999,60180.0,60179.0,0.083072]
[1726583517222,0.55675303,60180.0,60179.0,0.613072]
[1726583517414,0.74302398,60180.0,60179.0,0.613072]
[1726583517617,0.82609498,60180.0,60176.0,0.083077]
[1726583517922,0.18627095,60177.0,60176.0,0.083077]
[1726583518421,0.18627095,60177.0,60174.0,0.083079]
[1726583518621,0.49714304,60177.0,60174.0,0.083079]
[1726583518920,0.18627095,60175.0,60174.0,0.083079]
[1726583519316,0.05960999,60176.0,60175.0,0.083078]
[1726583519513,0.14268099,60180.0,60177.0,0.083075]
[1726583519816,0.083073,60179.0,60176.0,0.083076]
[1726583520016,0.05960999,60180.0,60174.0,0.00128]
[1726583520017,0.14110296,60175.0,60174.0,0.00128]
[1726583520322,0.14110296,60175.0,60174.0,0.083079]
[1726583520520,0.083082,60173.0,60168.0,0.01203817]
[1726583520722,0.14110296,60171.0,60170.0,0.083085]
[1726583521221,0.14110296,60171.0,60168.0,0.54319817]
[1726583521424,0.083085,60170.0,60168.0,0.01203817]
[1726583521624,0.05960999,60170.0,60169.0,0.083086]
[1726583521811,0.3608,60176.0,60168.0,0.01203817]
[1726583521812,0.00525,60175.0,60168.0,0.01203817]
[1726583522119,0.11295296,60171.0,60170.0,0.083085]
[1726583522320,0.11295296,60171.0,60170.0,0.089085]
[1726583522321,0.05202324,60171.0,60170.0,0.089085]
[1726583523020,0.02403324,60171.0,60170.0,0.70217]
[1726583523220,0.001,60171.0,60170.0,0.70217]
[1726583523425,0.3608,60176.0,60175.0,0.083078]
[1726583523622,0.47375296,60176.0,60175.0,0.083078]
[1726583524125,0.47375296,60176.0,60175.0,0.34]
[1726583524326,0.47375296,60176.0,60170.0,0.006]
[1726583524327,0.970896,60176.0,60170.0,0.429084]
[1726583524527,0.47375296,60171.0,60168.0,0.01203817]
[1726583524735,0.49465278,60169.0,60168.0,0.02103817]
[1726583525025,0.083093,60165.0,60158.0,0.083101]
[1726583525226,0.11295296,60161.0,60158.0,0.083101]
[1726583525425,0.610096,60161.0,60158.0,0.083101]
[1726583525623,0.11295296,60159.0,60158.0,0.09293798]
[1726583526029,0.610096,60159.0,60158.0,0.09293798]
[1726583526223,0.66971813,60159.0,60158.0,0.09293798]
[1726583526424,0.66971813,60159.0,60158.0,0.00983698]
[1726583526730,0.66971813,60159.0,60158.0,0.083101]
[1726583526929,0.66971813,60159.0,60158.0,0.973901]
[1726583527122,0.05962213,60159.0,60158.0,0.973901]
[1726583527322,0.00438413,60159.0,60158.0,1.057002]
[1726583527534,0.00438413,60159.0,60158.0,0.973901]
[1726583527929,0.06822872,60175.0,60158.0,1.38948]
[1726583528233,0.26045475,60170.0,60169.0,0.083086]
[1726583528423,0.26045475,60170.0,60159.0,0.3608]
[1726583528424,0.33951291,60170.0,60159.0,0.3608]
[1726583528623,0.07905816,60168.0,60159.0,0.3608]
[1726583529127,0.07905816,60168.0,60167.0,0.083089]
[1726583529326,0.05207316,60168.0,60167.0,0.973889]
[1726583530224,0.825,60182.0,60167.0,1.3894]
[1726583530225,0.21560713,60177.0,60167.0,1.3894]
[1726583530425,0.01416317,60169.0,60168.0,0.083088]
[1726583530628,0.01416317,60169.0,60163.0,0.00116]
[1726583530828,0.01416317,60164.0,60159.0,0.003]
[1726583531032,0.05962834,60168.0,60167.0,0.083089]
[1726583531225,0.05962834,60168.0,60167.0,0.613089]
[1726583531419,0.57093455,60168.0,60167.0,0.613089]
[1726583532029,0.57193455,60168.0,60167.0,0.613089]
[1726583532233,0.57193455,60168.0,60162.0,0.53]
[1726583532534,0.01416317,60166.0,60165.0,0.083092]
[1726583532926,0.05102548,60166.0,60165.0,0.443892]
[1726583533123,0.56233169,60166.0,60165.0,0.3608]
[1726583533329,0.62196003,60166.0,60160.0,0.00946375]
[1726583533626,0.01416317,60161.0,60160.0,0.083099]
[1726583533827,0.06518865,60161.0,60160.0,0.613099]
[1726583534030,0.56233169,60161.0,60160.0,0.613099]
[1726583534238,0.62196003,60161.0,60160.0,0.613099]
[1726583535131,0.62196003,60161.0,60159.0,0.3608]
[1726583535330,0.12481699,60160.0,60159.0,0.3608]
[1726583535732,0.62196003,60160.0,60159.0,0.4439]
[1726583536339,0.62196003,60160.0,60159.0,0.9739]
[1726583536527,0.07529284,60160.0,60159.0,1.06]
[1726583536833,0.54160097,60160.0,60159.0,0.4469]
[1726583537134,0.51130621,60160.0,60159.0,0.3638]
[1726583537324,0.51130621,60160.0,60159.0,0.003]
[1726583537527,0.51130621,60160.0,60159.0,0.0861]
[1726583537726,0.51130621,60160.0,60159.0,0.4469]
[1726583537931,0.51130621,60160.0,60159.0,0.0861]
[1726583538945,0.51130621,60160.0,60159.0,0.6161]
[1726583539626,0.5709356,60160.0,60159.0,0.6161]
[1726583539836,0.6540346,60160.0,60156.0,0.01202214]
[1726583540035,0.09726617,60157.0,60156.0,0.01202214]
[1726583540232,0.6540386,60157.0,60156.0,0.01202214]
[1726583541031,0.6540386,60157.0,60156.0,0.01081993]
[1726583541231,0.6540386,60157.0,60156.0,0.00952958]
[1726583541535,0.5709356,60157.0,60147.0,0.53249381]
[1726583541735,0.2135898,60148.0,60147.0,0.61561081]
[1726583541936,0.33841949,60148.0,60147.0,0.61561081]
[1726583542138,0.01416317,60144.0,60125.0,0.53]
[1726583542327,1.85940956,60148.0,60129.0,0.53]
[1726583542328,0.01416317,60130.0,60129.0,0.53]
[1726583542528,0.01416317,60126.0,60125.0,0.00987813]
[1726583542734,0.12282969,60126.0,60124.0,0.53116]
[1726583543029,0.12282969,60126.0,60121.0,0.00249437]
[1726583543030,0.48362969,60125.0,60121.0,0.00249437]
[1726583543243,0.37296317,60122.0,60121.0,0.01233086]
[1726583543429,0.37296317,60122.0,60121.0,0.00249437]
[1726583543430,0.48362969,60122.0,60121.0,0.00249437]
[1726583543629,0.92114334,60122.0,60121.0,0.00249437]
[1726583543829,0.98077273,60122.0,60121.0,0.00249437]
[1726583544236,1.58077273,60122.0,60108.0,0.53]
[1726583544446,0.37296317,60109.0,60108.0,0.53]
[1726583544634,0.0632003,60109.0,60108.0,0.53]
[1726583544834,0.3608,60127.0,60126.0,0.083146]
[1726583545037,0.05965946,60132.0,60123.0,0.3608]
[1726583545234,0.3608,60139.0,60137.0,0.08313]
[1726583545440,0.3608,60139.0,60138.0,0.53]
[1726583545441,0.18798705,60139.0,60138.0,0.53]
[1726583545638,0.6126001,60139.0,60138.0,0.53]
[1726583545936,0.6126001,60139.0,60133.0,0.00249423]
[1726583545937,0.6126001,60139.0,60133.0,0.53249423]
[1726583546140,0.49714304,60139.0,60138.0,0.53]
[1726583546435,0.49714304,60139.0,60138.0,0.613129]
[1726583546644,0.49714304,60139.0,60133.0,0.61563023]
[1726583546834,0.49714304,60139.0,60138.0,0.53]
[1726583547247,0.85794304,60139.0,60138.0,0.53]
[1726583547441,0.85794304,60139.0,60133.0,0.53249423]
[1726583547648,0.85794304,60139.0,60133.0,0.01223844]
[1726583547835,0.3608,60136.0,60133.0,0.01223844]
[1726583548236,1.35682304,60136.0,60133.0,0.01223844]
[1726583548436,0.05965262,60135.0,60133.0,0.01223844]
[1726583548741,0.05965262,60135.0,60133.0,0.55023844]
[1726583548940,0.55679566,60135.0,60134.0,0.083135]
[1726583549145,0.49714304,60135.0,60133.0,0.55147844]
[1726583549451,0.49714304,60135.0,60133.0,0.01623844]
[1726583549639,0.05965252,60134.0,60133.0,0.54623844]
[1726583549831,0.11070182,60134.0,60133.0,0.62537444]
[1726583550032,0.60784486,60134.0,60133.0,0.62937444]
[1726583550342,0.60784486,60134.0,60133.0,0.01623844]
[1726583550548,1.70672486,60134.0,60133.0,0.01623844]
[1726583550847,0.49892,60133.0,60109.0,0.613169]
[1726583551043,0.3608,60116.0,60109.0,0.083169]
[1726583551347,0.0510493,60115.0,60110.0,0.53]
[1726583551537,0.0510493,60115.0,60113.0,0.083163]
[1726583551745,0.54569758,60115.0,60113.0,0.083163]
[1726583551942,0.11072037,60114.0,60113.0,0.083163]
[1726583552143,0.11072037,60114.0,60111.0,0.083166]
[1726583552345,0.60536865,60114.0,60112.0,0.083165]
[1726583552544,0.49464828,60114.0,60113.0,0.083164]
[1726583552845,0.05106768,60114.0,60113.0,0.083164]
[1726583553045,0.05206284,60114.0,60113.0,0.013]
[1726583553239,0.05206284,60114.0,60113.0,0.096164]
[1726583553641,8.4e-07,60114.0,60113.0,0.678368]
[1726583553848,8.4e-07,60114.0,60113.0,0.761532]
[1726583554260,8.4e-07,60114.0,60113.0,0.595204]
[1726583554758,0.49564828,60114.0,60113.0,0.613164]
[1726583555248,0.49464828,60114.0,60113.0,0.613164]
[1726583555552,0.49564828,60114.0,60113.0,0.627164]
[1726583555947,0.49564828,60114.0,60113.0,0.544]
[1726583556146,0.49564828,60114.0,60113.0,0.627164]
[1726583556450,0.49564828,60114.0,60113.0,0.544]
[1726583556836,0.49564828,60114.0,60113.0,0.627164]
[1726583557551,0.49564828,60114.0,60113.0,0.544]
[1726583557748,0.49564828,60114.0,60113.0,0.014]
[1726583558140,0.57881028,60114.0,60113.0,0.014]
[1726583558448,1.67785028,60114.0,60113.0,0.014]
[1726583558647,1.31602138,60114.0,60101.0,0.53]
[1726583558949,0.3608,60105.0,60100.0,0.009498]
[1726583559247,0.05107312,60104.0,60097.0,0.00249588]
[1726583559449,0.3608,60098.0,60097.0,0.00249588]
[1726583559652,0.48266972,60104.0,60097.0,0.08568188]
[1726583559949,0.48266972,60104.0,60103.0,0.083178]
[1726583560140,0.53374526,60104.0,60103.0,0.083178]
[1726583560337,0.53374526,60104.0,60101.0,0.005]
[1726583560639,0.48266972,60104.0,60101.0,0.005]
[1726583561640,0.48266972,60104.0,60102.0,0.53]
[1726583561853,0.48266972,60104.0,60101.0,0.005]
[1726583562057,0.48266972,60104.0,60097.0,0.09550492]
[1726583562240,0.3618,60098.0,60097.0,0.01231992]
[1726583562647,0.48266972,60098.0,60097.0,0.09550592]
[1726583562845,0.84346972,60098.0,60097.0,0.09550592]
[1726583563041,1.34266972,60098.0,60097.0,0.01231992]
[1726583563255,1.34366972,60098.0,60097.0,0.01231992]
[1726583563552,0.84446972,60098.0,60097.0,0.01231992]
[1726583563744,2.02685372,60098.0,60097.0,0.01231992]
[1726583564061,0.083186,60097.0,60093.0,0.00249597]
[1726583564350,0.13426954,60096.0,60093.0,0.00249597]
[1726583564556,0.05108254,60095.0,60093.0,0.00249597]
[1726583564758,0.05108254,60095.0,60093.0,0.08568697]
[1726583564951,0.53375226,60095.0,60093.0,0.08568697]
[1726583565255,0.4992,60094.0,60080.0,0.01196894]
[1726583565553,0.6,60095.0,60076.0,0.53249667]
[1726583565554,0.3608,60090.0,60076.0,0.53249667]
[1726583565746,0.05109288,60089.0,60083.0,0.083205]
[1726583565948,0.3608,60090.0,60085.0,0.53]
[1726583566142,0.3608,60090.0,60080.0,0.53]
[1726583566342,0.3608,60090.0,60089.0,0.083197]
[1726583567355,0.3608,60090.0,60077.0,0.53]
[1726583567752,0.3608,60090.0,60076.0,0.00249667]
[1726583568055,0.3618,60090.0,60076.0,0.54440808]
[1726583568249,0.3618,60090.0,60081.0,0.083207]
[1726583568554,0.3618,60090.0,60076.0,0.01440808]
[1726583568555,0.001,60090.0,60076.0,0.01440808]
[1726583568860,0.3608,60087.0,60076.0,0.01440808]
[1726583569045,0.3608,60082.0,60076.0,0.01440808]
[1726583569252,0.1535047,60089.0,60077.0,0.53]
[1726583569463,0.001,60090.0,60089.0,0.083197]
[1726583569769,0.001,60090.0,60083.0,0.53]
[1726583570553,0.001,60090.0,60076.0,1.03370808]
[1726583571053,0.001,60082.0,60078.0,0.083212]
[1726583571444,0.3618,60082.0,60076.0,0.01440808]
[1726583571658,0.3608,60077.0,60076.0,0.01440808]
[1726583572055,0.4571,60087.0,60076.0,0.01440808]
[1726583572359,0.444014,60077.0,60076.0,0.01440808]
[1726583572858,0.3608,60077.0,60076.0,0.01440808]
[1726583573252,0.083213,60078.0,60076.0,0.01440808]
[1726583573555,0.001,60082.0,60076.0,0.01440808]
[1726583573964,0.3608,60077.0,60076.0,0.01440808]
[1726583574157,0.3608,60084.0,60076.0,0.54440808]
[1726583574354,0.3608,60083.0,60082.0,0.53]
[1726583574561,0.3608,60092.0,60076.0,0.01440808]
[1726583574758,0.3608,60077.0,60076.0,0.01440808]
[1726583575068,1.044014,60077.0,60065.0,0.00249728]
[1726583575254,0.3608,60070.0,60065.0,0.00249728]
[1726583575460,0.3608,60070.0,60066.0,0.083228]
[1726583575959,0.86024,60069.0,60065.0,0.00249728]
[1726583576162,0.86024,60069.0,60065.0,0.0146057]
[1726583576469,0.86024,60069.0,60045.0,0.3608]
[1726583576470,0.53,60066.0,60045.0,0.3608]
[1726583576663,0.3608,60064.0,60053.0,0.53]
[1726583576871,0.3608,60059.0,60053.0,0.53]
[1726583577060,0.3608,60058.0,60057.0,0.08324]
[1726583577268,0.3608,60058.0,60053.0,0.53]
[1726583577566,0.3608,60064.0,60056.0,0.083243]
[1726583577863,0.3608,60057.0,60056.0,0.083243]
[1726583578266,0.3608,60057.0,60053.0,0.53]
[1726583578453,0.3608,60064.0,60053.0,0.53]
[1726583578659,0.001,60058.0,60049.0,0.00249752]
[1726583578858,0.001,60058.0,60057.0,0.613241]
[1726583580272,0.86132,60058.0,60053.0,0.083247]
[1726583580467,0.91850535,60058.0,60049.0,0.00249752]
[1726583580663,0.3608,60050.0,60049.0,0.01458656]
[1726583580858,0.3608,60050.0,60029.0,0.08328]
[1726583581063,0.083256,60047.0,60040.0,0.444064]
[1726583581259,0.3608,60050.0,60043.0,0.083261]
[1726583581460,0.444052,60050.0,60043.0,0.083261]
[1726583581779,0.3608,60044.0,60040.0,0.01187232]
[1726583582072,0.36276001,60050.0,60040.0,0.53]
[1726583582373,0.3618,60050.0,60049.0,0.083252]
[1726583582668,0.001,60050.0,60049.0,0.527304]
[1726583582969,0.3608,60068.0,60061.0,0.083234]
[1726583583173,0.3608,60068.0,60062.0,0.083234]
[1726583583467,0.3608,60072.0,60067.0,0.53]
[1726583583669,0.53,60087.0,60066.0,0.083228]
[1726583583670,0.3608,60068.0,60066.0,0.083228]
[1726583583863,0.3608,60068.0,60057.0,0.00249739]
[1726583584771,0.3608,60073.0,60066.0,0.53]
[1726583585164,0.3608,60073.0,60072.0,0.53]
[1726583585364,0.3608,60073.0,60072.0,0.61322]
[1726583585571,0.3608,60083.0,60072.0,0.61322]
[1726583585572,0.3608,60078.0,60072.0,0.53]
[1726583585772,0.3608,60083.0,60082.0,0.083207]
[1726583585974,0.3608,60090.0,60088.0,0.083198]
[1726583586174,0.3608,60090.0,60084.0,0.00249608]
[1726583586865,0.3608,60085.0,60084.0,0.00249608]
[1726583588080,0.3608,60090.0,60086.0,0.083201]
[1726583588279,0.3608,60090.0,60084.0,0.00249608]
[1726583588572,0.004,60085.0,60084.0,0.53249608]
[1726583588883,0.004,60085.0,60084.0,0.61570008]
[1726583589174,0.3608,60090.0,60084.0,0.01469515]
[1726583589383,0.3608,60093.0,60084.0,0.01569515]
[1726583589880,0.3608,60102.0,60089.0,0.53]
[1726583590185,0.3608,60097.0,60089.0,0.53]
[1726583590374,0.3608,60102.0,60089.0,0.53]
[1726583590865,0.3608,60102.0,60101.0,0.08318]
[1726583591187,0.3608,60102.0,60097.0,0.08568076]
[1726583591571,0.3608,60102.0,60099.0,0.083182]
[1726583591774,0.3608,60122.0,60101.0,0.8908]
[1726583592073,0.3608,60107.0,60102.0,0.53]
[1726583592274,0.3608,60117.0,60102.0,0.53]
[1726583592478,0.083119,60146.0,60112.0,0.53]
[1726583592479,0.3608,60128.0,60112.0,0.53]
[1726583592668,0.3608,60128.0,60127.0,0.083144]
[1726583592979,0.34357922,60128.0,60123.0,0.53249448]
[1726583593171,0.34357922,60128.0,60127.0,0.083144]
[1726583594078,0.34357922,60128.0,60123.0,0.53333448]
[1726583594283,0.3608,60126.0,60123.0,0.00249448]
[1726583594471,0.942904,60127.0,60123.0,0.00249448]
[1726583594775,0.3608,60127.0,60123.0,0.00249448]
[1726583594982,0.53,60124.0,60101.0,0.3608]
[1726583595274,0.3608,60119.0,60105.0,0.3608]
[1726583595475,0.3608,60114.0,60099.0,0.53]
[1726583595676,0.3608,60114.0,60108.0,0.01436785]
[1726583595875,0.3608,60116.0,60108.0,0.00249521]
[1726583596083,0.44396,60116.0,60108.0,0.00249521]
[1726583596286,0.3608,60109.0,60108.0,0.00249521]
[1726583596972,0.3608,60109.0,60108.0,0.01549521]
[1726583597682,0.3618,60109.0,60108.0,0.00249521]
[1726583598182,0.3618,60109.0,60108.0,0.00349521]
[1726583599680,0.001,60109.0,60108.0,0.00349521]
[1726583599870,0.3618,60109.0,60108.0,0.00349521]
[1726583600073,0.3658,60109.0,60108.0,0.00249521]
[1726583600470,0.3658,60109.0,60104.0,0.01236521]
[1726583600471,2.078049,60109.0,60104.0,0.01236521]
[1726583600679,0.083184,60098.0,60097.0,0.00249576]
[1726583600881,0.943184,60098.0,60097.0,0.00249576]
[1726583601085,1.543184,60098.0,60097.0,0.00249576]
[1726583602181,0.3608,60098.0,60097.0,0.00249576]
[1726583602586,0.3608,60098.0,60097.0,0.08568176]
[1726583602796,0.3608,60098.0,60097.0,0.00249576]
[1726583603385,0.3608,60098.0,60097.0,0.08568176]
[1726583604182,0.3668,60098.0,60097.0,0.08568176]
[1726583604574,0.006,60098.0,60097.0,0.08568176]
[1726583604884,0.3608,60105.0,60104.0,0.083176]
[1726583605887,0.3608,60111.0,60110.0,0.083168]
[1726583606187,0.3608,60111.0,60102.0,0.53]
[1726583606378,0.3608,60111.0,60103.0,0.083177]
[1726583606772,0.3608,60111.0,60102.0,0.53]
[1726583607176,0.3608,60111.0,60106.0,0.083172]
[1726583607375,0.3608,60111.0,60104.0,0.004]
[1726583607578,0.3608,60111.0,60110.0,0.083168]
[1726583607784,0.3608,60111.0,60102.0,0.53]
[1726583607990,0.3608,60111.0,60102.0,0.532]
[1726583608288,0.08317,60109.0,60103.0,0.083177]
[1726583608582,0.083169,60110.0,60104.0,0.003]
[1726583608786,0.3608,60111.0,60104.0,0.003]
[1726583608986,0.3608,60111.0,60105.0,0.083175]
[1726583609181,0.3608,60111.0,60104.0,0.003]
[1726583609484,0.083169,60110.0,60104.0,0.003]
[1726583609689,0.3608,60111.0,60105.0,0.083174]
[1726583609884,0.3608,60111.0,60106.0,0.083173]
[1726583610083,0.3608,60111.0,60102.0,0.01229431]
[1726583610084,0.083168,60110.0,60102.0,0.09547331]
[1726583610284,0.3608,60104.0,60102.0,0.002]
[1726583610489,0.8908,60104.0,60102.0,0.002]
[1726583610691,0.8908,60104.0,60097.0,0.00249576]
[1726583610692,0.083184,60098.0,60097.0,0.00249576]
[1726583610986,1.057168,60098.0,60097.0,0.00249576]
[1726583611180,0.083198,60089.0,60084.0,0.00249608]
[1726583611382,0.3608,60085.0,60084.0,0.08569908]
[1726583611586,0.3608,60085.0,60084.0,0.01441527]
[1726583611886,0.3608,60085.0,60084.0,0.09761927]
[1726583612089,0.3608,60085.0,60084.0,0.01441527]
[1726583612288,0.3608,60086.0,60084.0,0.01441527]
[1726583612488,0.3608,60091.0,60090.0,0.083196]
[1726583612887,0.33982023,60091.0,60090.0,0.083196]
[1726583613385,0.3608,60103.0,60100.0,0.083181]
[1726583613589,0.3608,60103.0,60097.0,0.53]
[1726583614094,0.3608,60103.0,60102.0,0.083179]
[1726583614591,0.3608,60109.0,60108.0,0.083169]
[1726583614889,0.3608,60109.0,60099.0,0.3608]
[1726583614890,0.3608,60115.0,60114.0,0.083162]
[1726583615076,0.3608,60115.0,60114.0,0.613162]
[1726583616198,0.3608,60115.0,60114.0,0.62507849]
[1726583616889,0.7216,60115.0,60114.0,0.62507849]
[1726583617093,0.7216,60115.0,60114.0,0.01891649]
[1726583617287,0.78127212,60115.0,60114.0,0.007]
[1726583617492,0.86443312,60115.0,60114.0,0.007]
[1726583617888,0.78127212,60115.0,60106.0,0.00249548]
[1726583618086,0.3608,60107.0,60090.0,0.083195]
[1726583618287,0.3608,60107.0,60086.0,0.53]
[1726583618288,0.7216,60097.0,60096.0,0.0143879]